[Event "Late-Titled-Tuesday-Blitz-April-16-2024"]
[Site "Chess.com"]
[Date "2024.04.16"]
[Round "6"]
[White "SharathRk6"]
[Black "AEMEffi"]
[Result "1/2-1/2"]
[WhiteElo "2388"]
[BlackElo "2280"]
[TimeControl "180+1"]
[EndTime "15:03:02 PDT"]
[Termination "Game drawn by repetition"]

1. e4 {[%clk 0:03:00.9]} 1... d5 {[%clk 0:02:59.1]} 2. exd5 {[%clk 0:03:00.9]}
2... Qxd5 {[%clk 0:02:59.6]} 3. Nf3 {[%clk 0:03:01.2]} 3... Nf6 {[%clk
0:02:58.9]} 4. d4 {[%clk 0:02:58.8]} 4... Bg4 {[%clk 0:02:58.4]} 5. Be2 {[%clk
0:02:58.8]} 5... Nc6 {[%clk 0:02:57.3]} 6. Nc3 {[%clk 0:02:57.7]} 6... Qa5
{[%clk 0:02:42.2]} 7. O-O {[%clk 0:02:55]} 7... O-O-O {[%clk 0:02:40.4]} 8. Be3
{[%clk 0:02:51.1]} 8... e6 {[%clk 0:02:28.6]} 9. h3 {[%clk 0:02:50.4]} 9... Bxf3
{[%clk 0:02:17.2]} 10. Bxf3 {[%clk 0:02:51.3]} 10... Nxd4 {[%clk 0:02:13.8]} 11.
Bxd4 {[%clk 0:02:48.4]} 11... c5 {[%clk 0:02:13.6]} 12. Bxb7+ {[%clk 0:02:43.8]}
12... Kxb7 {[%clk 0:02:01.2]} 13. Qf3+ {[%clk 0:02:42]} 13... Nd5 {[%clk
0:01:21.8]} 14. Nxd5 {[%clk 0:02:36.3]} 14... exd5 {[%clk 0:01:22.7]} 15. Qxf7+
{[%clk 0:02:35]} 15... Qc7 {[%clk 0:01:22.9]} 16. Qxc7+ {[%clk 0:02:33.8]} 16...
Kxc7 {[%clk 0:01:23.8]} 17. Be5+ {[%clk 0:02:34.1]} 17... Kc6 {[%clk 0:01:21.5]}
18. Rfe1 {[%clk 0:02:33.7]} 18... h5 {[%clk 0:01:19.7]} 19. Rad1 {[%clk
0:02:33.9]} 19... h4 {[%clk 0:01:18.3]} 20. f4 {[%clk 0:02:33.6]} 20... Rh5
{[%clk 0:01:14.5]} 21. c3 {[%clk 0:02:29]} 21... Rf5 {[%clk 0:01:13.2]} 22. Re2
{[%clk 0:02:14.6]} 22... Bd6 {[%clk 0:00:51.1]} 23. Bxd6 {[%clk 0:02:11.4]}
23... Rxd6 {[%clk 0:00:49.1]} 24. Re7 {[%clk 0:02:09]} 24... d4 {[%clk
0:00:39.1]} 25. cxd4 {[%clk 0:02:07.2]} 25... cxd4 {[%clk 0:00:40]} 26. Rxg7
{[%clk 0:02:07.1]} 26... Rxf4 {[%clk 0:00:36.8]} 27. Rxa7 {[%clk 0:02:07.4]}
27... Rd8 {[%clk 0:00:31.3]} 28. Ra3 {[%clk 0:02:04]} 28... Re4 {[%clk
0:00:27.2]} 29. Rad3 {[%clk 0:02:04]} 29... Kc5 {[%clk 0:00:26.2]} 30. Kf2
{[%clk 0:02:04.3]} 30... Rf8+ {[%clk 0:00:25.6]} 31. Rf3 {[%clk 0:02:04.3]}
31... Rfe8 {[%clk 0:00:24.4]} 32. Rd2 {[%clk 0:02:02.2]} 32... R8e5 {[%clk
0:00:22.4]} 33. Rc2+ {[%clk 0:02:00.9]} 33... Kd5 {[%clk 0:00:22]} 34. b4 {[%clk
0:01:59.3]} 34... Re1 {[%clk 0:00:19.7]} 35. Rc5+ {[%clk 0:01:59.3]} 35... Kd6
{[%clk 0:00:18.4]} 36. Rxe5 {[%clk 0:01:59.4]} 36... Rxe5 {[%clk 0:00:18.7]} 37.
a4 {[%clk 0:01:55.5]} 37... Kd5 {[%clk 0:00:17.4]} 38. Rf4 {[%clk 0:01:55.9]}
38... Kc4 {[%clk 0:00:16.5]} 39. Rxh4 {[%clk 0:01:56.5]} 39... Kc3 {[%clk
0:00:16]} 40. Rh8 {[%clk 0:01:54.2]} 40... d3 {[%clk 0:00:12.9]} 41. Rd8 {[%clk
0:01:53.5]} 41... Rf5+ {[%clk 0:00:11.2]} 42. Ke3 {[%clk 0:01:51.3]} 42... Re5+
{[%clk 0:00:10.3]} 43. Kf4 {[%clk 0:01:51.7]} 43... Re2 {[%clk 0:00:10.6]} 44.
g4 {[%clk 0:01:52]} 44... Rh2 {[%clk 0:00:08.5]} 45. Kg3 {[%clk 0:01:50.9]}
45... Re2 {[%clk 0:00:07.1]} 46. h4 {[%clk 0:01:51.2]} 46... d2 {[%clk 0:00:07]}
47. Kf4 {[%clk 0:01:44.4]} 47... Rf2+ {[%clk 0:00:06.9]} 48. Kg5 {[%clk
0:01:43.8]} 48... Re2 {[%clk 0:00:06.5]} 49. h5 {[%clk 0:01:42.3]} 49... Re4
{[%clk 0:00:06.7]} 50. Rxd2 {[%clk 0:01:39.7]} 50... Kxd2 {[%clk 0:00:06.4]} 51.
h6 {[%clk 0:01:40.1]} 51... Rxb4 {[%clk 0:00:06.4]} 52. Kh5 {[%clk 0:01:40.7]}
52... Rxa4 {[%clk 0:00:06.3]} 53. g5 {[%clk 0:01:41.4]} 53... Ke3 {[%clk
0:00:06.4]} 54. h7 {[%clk 0:01:41.6]} 54... Ra1 {[%clk 0:00:04.4]} 55. Kh6
{[%clk 0:01:40.4]} 55... Kf4 {[%clk 0:00:03.7]} 56. g6 {[%clk 0:01:33.2]} 56...
Kf5 {[%clk 0:00:03.2]} 57. Kg7 {[%clk 0:01:32.8]} 57... Rh1 {[%clk 0:00:02.3]}
58. Kf7 {[%clk 0:01:32.3]} 58... Rh2 {[%clk 0:00:02.1]} 59. Kg7 {[%clk
0:01:27.8]} 59... Rh1 {[%clk 0:00:01.7]} 60. Kf7 {[%clk 0:01:27.6]} 60... Rh2
{[%clk 0:00:01.6]} 61. Kg7 {[%clk 0:01:26.7]} 61... Rh1 {[%clk 0:00:01.6]}
1/2-1/2

[Event "Late-Titled-Tuesday-Blitz-April-16-2024"]
[Site "Chess.com"]
[Date "2024.04.16"]
[Round "6"]
[White "Mikhail_Bryakin"]
[Black "Korchmar_Vasiliy"]
[Result "1-0"]
[WhiteElo "2884"]
[BlackElo "2721"]
[TimeControl "180+1"]
[EndTime "15:03:03 PDT"]
[Termination "Mikhail_Bryakin won on time"]

1. Nf3 {[%clk 0:03:00.1]} 1... d5 {[%clk 0:03:00]} 2. e3 {[%clk 0:02:56.6]} 2...
Nf6 {[%clk 0:02:59.2]} 3. c4 {[%clk 0:02:56.6]} 3... c6 {[%clk 0:02:59.9]} 4. b3
{[%clk 0:02:56.2]} 4... e6 {[%clk 0:03:00.3]} 5. Bb2 {[%clk 0:02:56.5]} 5... Bd6
{[%clk 0:03:01]} 6. Nc3 {[%clk 0:02:54.1]} 6... O-O {[%clk 0:02:59.8]} 7. Qc2
{[%clk 0:02:52.3]} 7... e5 {[%clk 0:03:00.4]} 8. cxd5 {[%clk 0:02:51.4]} 8...
cxd5 {[%clk 0:03:01.3]} 9. Nb5 {[%clk 0:02:51.2]} 9... Nc6 {[%clk 0:03:01.9]}
10. Nxd6 {[%clk 0:02:46.3]} 10... Qxd6 {[%clk 0:03:02.8]} 11. Bb5 {[%clk
0:02:46.6]} 11... Nb4 {[%clk 0:02:08.6]} 12. Qb1 {[%clk 0:02:23.4]} 12... e4
{[%clk 0:02:06.1]} 13. Nd4 {[%clk 0:02:14.5]} 13... a6 {[%clk 0:02:03.7]} 14.
Be2 {[%clk 0:02:12.2]} 14... Bg4 {[%clk 0:02:04.3]} 15. f3 {[%clk 0:02:12.6]}
15... Bd7 {[%clk 0:01:35.2]} 16. a3 {[%clk 0:02:04.1]} 16... Nc6 {[%clk
0:01:35.3]} 17. O-O {[%clk 0:02:01.8]} 17... Ne5 {[%clk 0:01:30.8]} 18. Qe1
{[%clk 0:02:00]} 18... exf3 {[%clk 0:01:20.9]} 19. gxf3 {[%clk 0:01:59.8]} 19...
Ng6 {[%clk 0:01:19.4]} 20. Qg3 {[%clk 0:01:59.1]} 20... Qe7 {[%clk 0:01:15.6]}
21. Kh1 {[%clk 0:01:53.8]} 21... Rac8 {[%clk 0:00:58]} 22. Rg1 {[%clk
0:01:53.6]} 22... Rfe8 {[%clk 0:00:45.1]} 23. Rac1 {[%clk 0:01:45.1]} 23... Rxc1
{[%clk 0:00:44.7]} 24. Rxc1 {[%clk 0:01:44.9]} 24... Rc8 {[%clk 0:00:45.2]} 25.
Rxc8+ {[%clk 0:01:42.7]} 25... Bxc8 {[%clk 0:00:46.1]} 26. Qb8 {[%clk
0:01:43.1]} 26... Qf8 {[%clk 0:00:39.6]} 27. Qc7 {[%clk 0:01:32.7]} 27... h6
{[%clk 0:00:25.5]} 28. Bc3 {[%clk 0:01:31.9]} 28... Bh3 {[%clk 0:00:20.2]} 29.
Bb4 {[%clk 0:01:08.5]} 29... Qe8 {[%clk 0:00:19.9]} 30. Qxb7 {[%clk 0:00:54.3]}
30... Qe5 {[%clk 0:00:20.1]} 31. Qb6 {[%clk 0:00:42.3]} 31... Kh7 {[%clk
0:00:10.3]} 32. Qd6 {[%clk 0:00:42.1]} 32... Qh5 {[%clk 0:00:04.6]} 33. Qg3
{[%clk 0:00:41.7]} 33... Bd7 {[%clk 0:00:01.9]} 34. Bd3 {[%clk 0:00:40.9]} 34...
Kg8 {[%clk 0:00:01.5]} 35. Qb8+ {[%clk 0:00:39]} 35... Kh7 {[%clk 0:00:01.5]}
36. Qg3 {[%clk 0:00:35.2]} 36... Kg8 {[%clk 0:00:01.7]} 37. Bxa6 {[%clk
0:00:35.3]} 37... Ne5 {[%clk 0:00:01.7]} 38. Be2 {[%clk 0:00:33.7]} 1-0

[Event "Late-Titled-Tuesday-Blitz-April-16-2024"]
[Site "Chess.com"]
[Date "2024.04.16"]
[Round "6"]
[White "Lennis93"]
[Black "jaskol95"]
[Result "1-0"]
[WhiteElo "2759"]
[BlackElo "2545"]
[TimeControl "180+1"]
[EndTime "15:03:04 PDT"]
[Termination "Lennis93 won by checkmate"]

1. Nf3 {[%clk 0:02:54.3]} 1... Nf6 {[%clk 0:02:59]} 2. c4 {[%clk 0:02:52.6]}
2... c5 {[%clk 0:02:54.1]} 3. Nc3 {[%clk 0:02:51.3]} 3... e6 {[%clk 0:02:54.1]}
4. d4 {[%clk 0:02:50.5]} 4... cxd4 {[%clk 0:02:52.5]} 5. Nxd4 {[%clk 0:02:51.4]}
5... Nc6 {[%clk 0:02:53]} 6. Nxc6 {[%clk 0:02:50]} 6... bxc6 {[%clk 0:02:53.4]}
7. e4 {[%clk 0:02:48.4]} 7... e5 {[%clk 0:02:53.9]} 8. Be3 {[%clk 0:02:47.1]}
8... Bb4 {[%clk 0:02:51]} 9. Bd3 {[%clk 0:02:46.2]} 9... d6 {[%clk 0:02:46]} 10.
O-O {[%clk 0:02:44.7]} 10... O-O {[%clk 0:02:45.7]} 11. Rc1 {[%clk 0:02:30.8]}
11... Ng4 {[%clk 0:02:27.4]} 12. Bd2 {[%clk 0:02:25.6]} 12... f5 {[%clk
0:02:24.2]} 13. exf5 {[%clk 0:02:24]} 13... Bxf5 {[%clk 0:02:24.1]} 14. Bxf5
{[%clk 0:02:23.2]} 14... Nxh2 {[%clk 0:02:20]} 15. Be6+ {[%clk 0:02:22.3]} 15...
Kh8 {[%clk 0:02:20.3]} 16. Kxh2 {[%clk 0:02:22.2]} 16... Qh4+ {[%clk 0:02:20.6]}
17. Kg1 {[%clk 0:02:21.4]} 17... Rf6 {[%clk 0:02:13]} 18. Bh3 {[%clk 0:02:16.7]}
18... Rg6 {[%clk 0:02:12.6]} 19. Qf3 {[%clk 0:02:09.9]} 19... Bc5 {[%clk
0:02:13.1]} 20. Ne4 {[%clk 0:02:08]} 20... Bd4 {[%clk 0:02:11]} 21. Nxd6 {[%clk
0:02:01.9]} 21... Rxd6 {[%clk 0:02:06.2]} 22. Bc3 {[%clk 0:01:52.8]} 22... Rf6
{[%clk 0:02:03.9]} 23. Qe2 {[%clk 0:01:43]} 23... Rg6 {[%clk 0:01:51.6]} 24. Bf5
{[%clk 0:01:32.2]} 24... Rh6 {[%clk 0:01:43]} 25. Bh3 {[%clk 0:01:31.8]} 25...
Rg6 {[%clk 0:01:43.3]} 26. Kh2 {[%clk 0:01:31]} 26... Bc5 {[%clk 0:01:28.3]} 27.
Bxe5 {[%clk 0:01:28]} 27... Re8 {[%clk 0:01:04.9]} 28. Bxg7+ {[%clk 0:01:27.2]}
28... Kxg7 {[%clk 0:01:04.4]} 29. Qxe8 {[%clk 0:01:27.1]} 29... Bxf2 {[%clk
0:01:04.7]} 30. Qd7+ {[%clk 0:01:21.1]} 30... Kg8 {[%clk 0:00:57]} 31. Rc3
{[%clk 0:00:44.7]} 31... Qf6 {[%clk 0:00:31.4]} 32. Rf3 {[%clk 0:00:40.3]} 32...
Qe5+ {[%clk 0:00:28.9]} 33. Kh1 {[%clk 0:00:39.3]} 33... Bc5 {[%clk 0:00:29]}
34. Rf5 {[%clk 0:00:23.5]} 34... Qe3 {[%clk 0:00:22.1]} 35. Rf7 {[%clk
0:00:17.1]} 35... h5 {[%clk 0:00:15.8]} 36. Qd8+ {[%clk 0:00:16.7]} 36... Bf8
{[%clk 0:00:14.4]} 37. Qxf8# {[%clk 0:00:15.5]} 1-0

[Event "Late-Titled-Tuesday-Blitz-April-16-2024"]
[Site "Chess.com"]
[Date "2024.04.16"]
[Round "6"]
[White "alexrustemov"]
[Black "IMGC"]
[Result "1-0"]
[WhiteElo "2860"]
[BlackElo "2478"]
[TimeControl "180+1"]
[EndTime "15:03:13 PDT"]
[Termination "alexrustemov won on time"]

1. d4 {[%clk 0:03:00.9]} 1... Nf6 {[%clk 0:02:59.2]} 2. c4 {[%clk 0:03:01.3]}
2... c5 {[%clk 0:02:59.4]} 3. d5 {[%clk 0:03:00.6]} 3... b5 {[%clk 0:02:58.8]}
4. cxb5 {[%clk 0:03:01.5]} 4... a6 {[%clk 0:02:59.3]} 5. e3 {[%clk 0:03:02.2]}
5... g6 {[%clk 0:02:58.5]} 6. Nc3 {[%clk 0:03:02]} 6... Bg7 {[%clk 0:02:58.9]}
7. a4 {[%clk 0:03:02.4]} 7... axb5 {[%clk 0:02:57.4]} 8. Bxb5 {[%clk 0:03:01.1]}
8... O-O {[%clk 0:02:55.8]} 9. e4 {[%clk 0:03:00.9]} 9... d6 {[%clk 0:02:53.2]}
10. Nf3 {[%clk 0:03:00.5]} 10... Na6 {[%clk 0:02:48.5]} 11. O-O {[%clk
0:03:00.3]} 11... Nc7 {[%clk 0:02:47.2]} 12. Bf4 {[%clk 0:02:55.1]} 12... Nxb5
{[%clk 0:02:40.2]} 13. axb5 {[%clk 0:02:54]} 13... Rb8 {[%clk 0:02:38]} 14. h3
{[%clk 0:02:47.3]} 14... Bd7 {[%clk 0:02:20.4]} 15. Qd3 {[%clk 0:02:45.8]} 15...
Qb6 {[%clk 0:02:08.1]} 16. e5 {[%clk 0:02:37.6]} 16... Ne8 {[%clk 0:01:38.7]}
17. Rfe1 {[%clk 0:02:20.5]} 17... Bxb5 {[%clk 0:01:33.6]} 18. Qd2 {[%clk
0:01:57.9]} 18... dxe5 {[%clk 0:01:19.5]} 19. Bxe5 {[%clk 0:01:52]} 19... Rb7
{[%clk 0:01:04.4]} 20. Bxg7 {[%clk 0:01:42.5]} 20... Kxg7 {[%clk 0:01:01]} 21.
Re4 {[%clk 0:01:26.6]} 21... Nf6 {[%clk 0:00:36.7]} 22. Rh4 {[%clk 0:01:25.7]}
22... h5 {[%clk 0:00:36.2]} 23. Ne4 {[%clk 0:01:17.4]} 23... Bd7 {[%clk
0:00:28.2]} 24. Ne5 {[%clk 0:00:55.4]} 24... Nxe4 {[%clk 0:00:24.3]} 25. Rxe4
{[%clk 0:00:55]} 25... Bf5 {[%clk 0:00:25]} 26. Re2 {[%clk 0:00:54.5]} 26... Qd6
{[%clk 0:00:24]} 27. Qc3 {[%clk 0:00:40.5]} 27... Kg8 {[%clk 0:00:23.1]} 28. Nc6
{[%clk 0:00:38.8]} 28... Re8 {[%clk 0:00:19.4]} 29. Rae1 {[%clk 0:00:38.1]}
29... e6 {[%clk 0:00:06]} 30. dxe6 {[%clk 0:00:35.5]} 30... Rxe6 {[%clk
0:00:04.1]} 31. Rxe6 {[%clk 0:00:31.6]} 31... Bxe6 {[%clk 0:00:05]} 32. Ne5
{[%clk 0:00:30.2]} 32... Qd4 {[%clk 0:00:05]} 33. Nxg6 {[%clk 0:00:18.2]} 33...
Qxc3 {[%clk 0:00:03.2]} 34. bxc3 {[%clk 0:00:19.1]} 34... Rb3 {[%clk 0:00:01.2]}
35. Nf4 {[%clk 0:00:16.3]} 1-0

[Event "Late-Titled-Tuesday-Blitz-April-16-2024"]
[Site "Chess.com"]
[Date "2024.04.16"]
[Round "6"]
[White "Harry_Rakkel"]
[Black "subham777"]
[Result "1-0"]
[WhiteElo "2717"]
[BlackElo "2533"]
[TimeControl "180+1"]
[EndTime "15:03:19 PDT"]
[Termination "Harry_Rakkel won by resignation"]

1. e4 {[%clk 0:02:56.3]} 1... e6 {[%clk 0:02:59.7]} 2. d4 {[%clk 0:02:55.4]}
2... d5 {[%clk 0:02:59.4]} 3. Nc3 {[%clk 0:02:55.4]} 3... Nf6 {[%clk 0:02:58.9]}
4. e5 {[%clk 0:02:55.1]} 4... Nfd7 {[%clk 0:02:58.8]} 5. Nce2 {[%clk 0:02:55]}
5... c5 {[%clk 0:02:58.8]} 6. c3 {[%clk 0:02:54.9]} 6... Nc6 {[%clk 0:02:59.3]}
7. Nf3 {[%clk 0:02:54]} 7... Qb6 {[%clk 0:02:57]} 8. a3 {[%clk 0:02:52.9]} 8...
cxd4 {[%clk 0:02:54.7]} 9. cxd4 {[%clk 0:02:52.1]} 9... a5 {[%clk 0:02:51.5]}
10. h4 {[%clk 0:02:48.5]} 10... h6 {[%clk 0:02:41.2]} 11. Nf4 {[%clk 0:02:47]}
11... Be7 {[%clk 0:02:29.6]} 12. Rh3 {[%clk 0:02:35]} 12... g6 {[%clk
0:02:23.5]} 13. Qd3 {[%clk 0:02:21.5]} 13... Nf8 {[%clk 0:02:17.7]} 14. Be2
{[%clk 0:02:16.3]} 14... Bd7 {[%clk 0:02:15.1]} 15. Rb1 {[%clk 0:02:13.2]} 15...
a4 {[%clk 0:02:14.5]} 16. Bd2 {[%clk 0:02:11.6]} 16... Na5 {[%clk 0:02:10.9]}
17. Bc3 {[%clk 0:02:09.9]} 17... Nc4 {[%clk 0:02:03.1]} 18. Kf1 {[%clk
0:02:04.6]} 18... Bb5 {[%clk 0:02:01.1]} 19. Qd1 {[%clk 0:02:04.5]} 19... Qa6
{[%clk 0:01:51.8]} 20. g4 {[%clk 0:02:00.1]} 20... Rc8 {[%clk 0:01:46.6]} 21.
Rc1 {[%clk 0:01:51.5]} 21... Rc6 {[%clk 0:01:28.2]} 22. Ne1 {[%clk 0:01:46.9]}
22... g5 {[%clk 0:01:22.2]} 23. Nfd3 {[%clk 0:01:43.7]} 23... gxh4 {[%clk
0:01:19.8]} 24. Nc2 {[%clk 0:01:36.5]} 24... Rc8 {[%clk 0:00:55.7]} 25. Bb4
{[%clk 0:01:25.2]} 25... Ng6 {[%clk 0:00:51.8]} 26. Bxe7 {[%clk 0:01:23.9]}
26... Kxe7 {[%clk 0:00:50.6]} 27. f4 {[%clk 0:01:10.5]} 27... Qb6 {[%clk
0:00:36.4]} 28. Qe1 {[%clk 0:01:06.3]} 28... Na5 {[%clk 0:00:25.2]} 29. f5
{[%clk 0:00:51.3]} 29... Bxd3 {[%clk 0:00:23.5]} 30. Rxd3 {[%clk 0:00:47.1]}
30... Nf4 {[%clk 0:00:22.4]} 31. Qxh4+ {[%clk 0:00:44.9]} 31... Kf8 {[%clk
0:00:18.8]} 32. Qf6 {[%clk 0:00:41.6]} 32... Rg8 {[%clk 0:00:16.5]} 33. Rf3
{[%clk 0:00:39.9]} 33... Nxe2 {[%clk 0:00:13]} 34. fxe6 {[%clk 0:00:40]} 34...
Rc7 {[%clk 0:00:13.1]} 35. e7+ {[%clk 0:00:31.3]} 35... Rxe7 {[%clk 0:00:12.6]}
36. Qxb6 {[%clk 0:00:31.2]} 36... Nc4 {[%clk 0:00:11.8]} 37. Qd8+ {[%clk
0:00:28.8]} 37... Re8 {[%clk 0:00:11.6]} 38. Qxd5 {[%clk 0:00:26.2]} 38... Nf4
{[%clk 0:00:05.5]} 39. Qxc4 {[%clk 0:00:24.3]} 39... Ne6 {[%clk 0:00:05.2]} 40.
Ne3 {[%clk 0:00:21.8]} 40... Rxg4 {[%clk 0:00:04.9]} 41. Nxg4 {[%clk 0:00:21.4]}
41... Rd8 {[%clk 0:00:04.4]} 42. Nxh6 {[%clk 0:00:21]} 1-0

[Event "Late-Titled-Tuesday-Blitz-April-16-2024"]
[Site "Chess.com"]
[Date "2024.04.16"]
[Round "6"]
[White "Tolyanius"]
[Black "rajesh1464"]
[Result "1-0"]
[WhiteElo "2627"]
[BlackElo "2390"]
[TimeControl "180+1"]
[EndTime "15:03:22 PDT"]
[Termination "Tolyanius won by resignation"]

1. e4 {[%clk 0:03:00.9]} 1... c5 {[%clk 0:02:59.8]} 2. Nf3 {[%clk 0:03:01.5]}
2... d6 {[%clk 0:03:00.7]} 3. d4 {[%clk 0:03:01.7]} 3... cxd4 {[%clk 0:03:01.6]}
4. Nxd4 {[%clk 0:03:02.6]} 4... Nf6 {[%clk 0:03:02]} 5. f3 {[%clk 0:03:03.3]}
5... Nc6 {[%clk 0:02:59.2]} 6. c4 {[%clk 0:03:03.3]} 6... Nxd4 {[%clk
0:02:56.8]} 7. Qxd4 {[%clk 0:03:02.4]} 7... g6 {[%clk 0:02:57.3]} 8. Nc3 {[%clk
0:03:01.8]} 8... Bg7 {[%clk 0:02:57.5]} 9. Be3 {[%clk 0:03:02.1]} 9... O-O
{[%clk 0:02:57.5]} 10. Qd2 {[%clk 0:03:02.5]} 10... Be6 {[%clk 0:02:57.4]} 11.
Rc1 {[%clk 0:03:03]} 11... Qa5 {[%clk 0:02:57.4]} 12. Be2 {[%clk 0:03:02]} 12...
Rfc8 {[%clk 0:02:57.5]} 13. b3 {[%clk 0:03:01.3]} 13... a6 {[%clk 0:02:57.8]}
14. O-O {[%clk 0:02:41.9]} 14... b5 {[%clk 0:02:43.4]} 15. Nd5 {[%clk
0:02:25.9]} 15... Qxd2 {[%clk 0:02:41.5]} 16. Bxd2 {[%clk 0:02:25.4]} 16... Nxd5
{[%clk 0:02:24.4]} 17. cxd5 {[%clk 0:02:24.1]} 17... Bd7 {[%clk 0:02:23]} 18.
Be3 {[%clk 0:02:14.4]} 18... f5 {[%clk 0:02:22.5]} 19. Kf2 {[%clk 0:02:09.8]}
19... Bb2 {[%clk 0:02:22]} 20. Rb1 {[%clk 0:01:59]} 20... Ba3 {[%clk 0:02:18.6]}
21. Bd3 {[%clk 0:01:53.8]} 21... Bc5 {[%clk 0:02:12.2]} 22. b4 {[%clk
0:01:49.4]} 22... Bxe3+ {[%clk 0:02:03.9]} 23. Kxe3 {[%clk 0:01:50.3]} 23... Rc3
{[%clk 0:02:03.5]} 24. Rfc1 {[%clk 0:01:40.7]} 24... Rac8 {[%clk 0:02:03]} 25.
Kd2 {[%clk 0:01:37.8]} 25... Rxc1 {[%clk 0:02:00.1]} 26. Rxc1 {[%clk 0:01:37.7]}
26... Rxc1 {[%clk 0:02:01]} 27. Kxc1 {[%clk 0:01:38.2]} 27... f4 {[%clk
0:01:44]} 28. Kd2 {[%clk 0:01:25.4]} 28... Kg7 {[%clk 0:01:43.1]} 29. Kc3 {[%clk
0:01:26.1]} 29... Kf6 {[%clk 0:01:43.1]} 30. Kd4 {[%clk 0:01:26.8]} 30... h6
{[%clk 0:01:39]} 31. Be2 {[%clk 0:01:22.2]} 31... g5 {[%clk 0:01:38.9]} 32. Bd3
{[%clk 0:01:21.8]} 32... h5 {[%clk 0:01:38.6]} 33. Be2 {[%clk 0:01:20.8]} 33...
Be8 {[%clk 0:01:23.1]} 34. a4 {[%clk 0:01:11.1]} 34... Bd7 {[%clk 0:01:11.3]}
35. a5 {[%clk 0:01:11.2]} 35... Be8 {[%clk 0:01:05.1]} 36. e5+ {[%clk
0:01:09.1]} 36... Kg7 {[%clk 0:00:53.5]} 37. h4 {[%clk 0:01:01.8]} 37... Kh6
{[%clk 0:00:51.3]} 38. Bd3 {[%clk 0:00:41.9]} 38... gxh4 {[%clk 0:00:47.5]} 39.
Bf5 {[%clk 0:00:42.4]} 39... Kg5 {[%clk 0:00:46.6]} 40. Bc8 {[%clk 0:00:42.8]}
40... h3 {[%clk 0:00:35.8]} 41. gxh3 {[%clk 0:00:33.4]} 41... Kh4 {[%clk
0:00:35.6]} 42. Bxa6 {[%clk 0:00:34.1]} 42... Kxh3 {[%clk 0:00:35.7]} 43. Bc8+
{[%clk 0:00:34.3]} 43... Kg3 {[%clk 0:00:33.9]} 44. a6 {[%clk 0:00:34.5]} 44...
e6 {[%clk 0:00:19.9]} 45. a7 {[%clk 0:00:33.9]} 45... dxe5+ {[%clk 0:00:19.9]}
46. Kxe5 {[%clk 0:00:33.9]} 46... exd5 {[%clk 0:00:20.2]} 47. a8=Q {[%clk
0:00:33.4]} 1-0

[Event "Late-Titled-Tuesday-Blitz-April-16-2024"]
[Site "Chess.com"]
[Date "2024.04.16"]
[Round "6"]
[White "Indefatigable11"]
[Black "Statham_01"]
[Result "1-0"]
[WhiteElo "2403"]
[BlackElo "2610"]
[TimeControl "180+1"]
[EndTime "15:03:24 PDT"]
[Termination "Indefatigable11 won on time"]

1. d4 {[%clk 0:03:00.9]} 1... Nf6 {[%clk 0:02:59.3]} 2. c4 {[%clk 0:03:00.9]}
2... e6 {[%clk 0:02:59.5]} 3. Nc3 {[%clk 0:03:00.6]} 3... Bb4 {[%clk 0:02:59.7]}
4. e3 {[%clk 0:03:00.8]} 4... d5 {[%clk 0:02:58.9]} 5. Bd2 {[%clk 0:02:57]} 5...
O-O {[%clk 0:02:58.1]} 6. Nf3 {[%clk 0:02:57.3]} 6... b6 {[%clk 0:02:56.7]} 7.
cxd5 {[%clk 0:02:54.2]} 7... exd5 {[%clk 0:02:53.3]} 8. Rc1 {[%clk 0:02:54.4]}
8... c5 {[%clk 0:02:53]} 9. a3 {[%clk 0:02:53]} 9... Bxc3 {[%clk 0:02:50.8]} 10.
Bxc3 {[%clk 0:02:53.4]} 10... c4 {[%clk 0:02:42.6]} 11. Be2 {[%clk 0:02:49.3]}
11... a5 {[%clk 0:02:36.8]} 12. O-O {[%clk 0:02:42.3]} 12... a4 {[%clk
0:02:36.8]} 13. Ne5 {[%clk 0:02:39]} 13... Bb7 {[%clk 0:02:27.7]} 14. f4 {[%clk
0:02:27.3]} 14... Nbd7 {[%clk 0:02:18.1]} 15. Be1 {[%clk 0:02:26.2]} 15... Ne4
{[%clk 0:02:14.3]} 16. Bf3 {[%clk 0:02:26]} 16... Nxe5 {[%clk 0:01:27]} 17. fxe5
{[%clk 0:02:24]} 17... Qg5 {[%clk 0:01:27.3]} 18. Qe2 {[%clk 0:02:19.5]} 18...
f5 {[%clk 0:01:18.3]} 19. Bb4 {[%clk 0:02:09.4]} 19... Rfe8 {[%clk 0:01:07.5]}
20. Bxe4 {[%clk 0:02:03.5]} 20... fxe4 {[%clk 0:01:08.4]} 21. Qf2 {[%clk
0:02:03.7]} 21... Kh8 {[%clk 0:00:39.7]} 22. e6 {[%clk 0:01:52.1]} 22... h5
{[%clk 0:00:25.3]} 23. e7 {[%clk 0:01:50.6]} 23... Bc6 {[%clk 0:00:16.3]} 24.
Rce1 {[%clk 0:01:43.8]} 24... Bd7 {[%clk 0:00:13.8]} 25. Qf7 {[%clk 0:01:35.9]}
25... Kh7 {[%clk 0:00:07.9]} 26. Bd6 {[%clk 0:01:33.3]} 26... h4 {[%clk
0:00:06.4]} 27. Rf4 {[%clk 0:01:24.9]} 27... Bh3 {[%clk 0:00:03.9]} 28. Re2
{[%clk 0:01:24.5]} 28... Bg4 {[%clk 0:00:03.8]} 29. Ref2 {[%clk 0:01:19.2]}
29... Bh5 {[%clk 0:00:04.3]} 30. Qe6 {[%clk 0:01:14.2]} 30... Bg6 {[%clk
0:00:02.5]} 31. h3 {[%clk 0:01:03.1]} 31... Rac8 {[%clk 0:00:02.4]} 32. Rg4
{[%clk 0:00:51.9]} 32... Qh6 {[%clk 0:00:02.3]} 33. Bf4 {[%clk 0:00:44.4]} 33...
Qh5 {[%clk 0:00:02.1]} 34. Rg5 {[%clk 0:00:44.4]} 34... Qd1+ {[%clk 0:00:02.8]}
35. Kh2 {[%clk 0:00:43]} 35... Bh5 {[%clk 0:00:03.5]} 36. Qf5+ {[%clk 0:00:37]}
36... Kg8 {[%clk 0:00:03.7]} 37. Be5 {[%clk 0:00:21]} 37... Rxe7 {[%clk
0:00:01.2]} 38. Qxc8+ {[%clk 0:00:19.9]} 1-0